[Event "HUN-ch U8-U18 2019"]
[Site "Balatonlelle"]
[Date "2019.06.24"]
[Round "5.33"]
[White "Toth, Barnabas"]
[Black "Megyeri, Martin"]
[Result "1-0"]
[ECO "B30"]
[WhiteElo "1363"]
[BlackElo "1520"]
[Annotator "NA"]
[PlyCount "69"]
[EventDate "2019.06.21"]
[EventType "swiss"]
[EventCountry "HUN"]
[SourceTitle "playchess.com"]
[Source "ChessBase"]
[SourceQuality "1"]
[TimeControl "40/5400+30:1800+30"]

1. e4 {[%emt 0:00:03]} c5 {[%emt 0:00:07]} 2. Nf3 {[%emt 0:00:05]} Nc6 {[%emt 0:01:10]} 3. Bb5 {[%emt 0:00:07]} Nf6 {[%emt 0:00:26]} 4. Bxc6 {[%emt 0:00:19]} bxc6 {[%emt 0:00:34]} 5. Nc3 {[%emt 0:00:18]} d5 {[%emt 0:00:42]} 6. e5 {[%emt 0:05:44]} Nd7 {[%emt 0:02:36]} 7. O-O {[%emt 0:01:14]} e6 {[%emt 0:00:34]} 8. d3 {[%emt 0:01:14]} Be7 {[%emt 0:01:43]} 9. Nd2 {[%emt 0:01:37]} Nxe5 {[%emt 0:01:26]} 10. Nb3 {[%emt 0:02:07]} Ng6 {[%emt 0:00:56]} 11. Na4 {[%emt 0:01:16]} O-O {[%emt 0:02:44]} 12. Naxc5 {[%emt 0:01:55]} e5 {[%emt 0:02:12]} 13. Be3 {[%emt 0:06:22]} Bg5 {[%emt 0:02:46]} 14. Qd2 {[%emt 0:00:46]} Bxe3 {[%emt 0:01:54]} 15. fxe3 {[%emt 0:01:13]} Bd7 {[%emt 0:10:15]} 16. e4 {[%emt 0:00:54]} d4 {[%emt 0:03:34]} 17. Qa5 {[%emt 0:10:49]} Be6 {[%emt 0:06:08]} 18. Qxd8 {[%emt 0:00:52]} Raxd8 {[%emt 0:01:16]} 19. Nxe6 {[%emt 0:00:36]} fxe6 {[%emt 0:00:19]} 20. Nc5 {[%emt 0:00:42]} Rde8 {[%emt 0:07:30]} 21. g3 {[%emt 0:04:00]} Rf6 {[%emt 0:05:54]} 22. a4 {[%emt 0:05:12]} Kf7 {[%emt 0:04:42]} 23. Ra3 {[%emt 0:00:43]} Re7 {[%emt 0:05:20]} 24. Rb3 {[%emt 0:01:55]} Rxf1+ {[%emt 0:03:16]} 25. Kxf1 {[%emt 0:00:15]} h5 {[%emt 0:02:24]} 26. a5 {[%emt 0:02:38]} h4 {[%emt 0:03:04]} 27. a6 {[%emt 0:00:38]} hxg3 {[%emt 0:03:17]} 28. hxg3 {[%emt 0:00:04]} Nf8 {[%emt 0:00:43]} 29. Rb8 {[%emt 0:01:04]} Nd7 {[%emt 0:03:12]} 30. Nxd7 {[%emt 0:03:13]} Rxd7 {[%emt 0:00:23]} 31. Rc8 {[%emt 0:00:06]} Ke7 {[%emt 0:02:01]} 32. Rxc6 {[%emt 0:00:45]} Rd6 {[%emt 0:00:32]} 33. Rc7+ {[%emt 0:00:13]} Rd7 {[%emt 0:00:12]} 34. Rxd7+ {[%emt 0:03:08]} Kxd7 {[%emt 0:00:13]} 35. Kf2 {[%emt 0:00:01]} 1-0

[Event "HUN-ch U8-U18 2019"]
[Site "Balatonlelle"]
[Date "2019.06.24"]
[Round "5.34"]
[White "Biro, Daniel"]
[Black "Csontos, Aron"]
[Result "1/2-1/2"]
[ECO "D02"]
[WhiteElo "1343"]
[BlackElo "1376"]
[Annotator "NA"]
[PlyCount "57"]
[EventDate "2019.06.21"]
[EventType "swiss"]
[EventCountry "HUN"]
[SourceTitle "playchess.com"]
[Source "ChessBase"]
[SourceQuality "1"]
[TimeControl "40/5400+30:1800+30"]

1. Nf3 {[%emt 0:00:01]} d5 {[%emt 0:00:12]} 2. d4 {[%emt 0:00:09]} Nf6 {[%emt 0:00:05]} 3. g3 {[%emt 0:00:11]} e6 {[%emt 0:00:11]} 4. Bg2 {[%emt 0:00:09]} Be7 {[%emt 0:00:08]} 5. O-O {[%emt 0:00:09]} O-O {[%emt 0:00:05]} 6. c4 {[%emt 0:00:04]} b6 {[%emt 0:00:23]} 7. Nc3 {[%emt 0:02:07]} Bb7 {[%emt 0:01:06]} 8. cxd5 {[%emt 0:02:33]} Nxd5 {[%emt 0:00:21]} 9. Nxd5 {[%emt 0:05:09]} Bxd5 {[%emt 0:00:24]} 10. Re1 {[%emt 0:01:38]} Nd7 {[%emt 0:02:11]} 11. Bf4 {[%emt 0:06:02]} c5 {[%emt 0:02:56]} 12. e4 {[%emt 0:02:47]} Bb7 {[%emt 0:01:41]} 13. Ne5 {[%emt 0:01:19]} cxd4 {[%emt 0:01:48]} 14. Nxd7 {[%emt 0:05:13]} Qxd7 {[%emt 0:00:18]} 15. Qg4 {[%emt 0:01:42]} Rfd8 {[%emt 0:03:03]} 16. Rad1 {[%emt 0:03:31]} f6 {[%emt 0:02:09]} 17. e5 {[%emt 0:07:18]} f5 {[%emt 0:02:25]} 18. Qe2 {[%emt 0:02:32]} Bxg2 {[%emt 0:00:30]} 19. Kxg2 {[%emt 0:00:13]} Rac8 {[%emt 0:01:00]} 20. Qd2 {[%emt 0:01:20]} Qc6+ {[%emt 0:00:33]} 21. Kg1 {[%emt 0:01:06]} Qc2 {[%emt 0:00:11]} 22. Rc1 {[%emt 0:03:10]} Qxd2 {[%emt 0:00:09]} 23. Bxd2 {[%emt 0:00:16]} h6 {[%emt 0:02:08]} 24. h4 {[%emt 0:03:01]} Kh7 {[%emt 0:02:07]} 25. h5 {[%emt 0:00:47]} Rc5 {[%emt 0:03:18]} 26. Rxc5 {[%emt 0:02:54]} bxc5 {[%emt 0:00:18]} 27. Rc1 {[%emt 0:01:02]} Rc8 {[%emt 0:00:32]} 28. b3 {[%emt 0:00:42]} Kg8 {[%emt 0:09:11]} 29. f4 {[%emt 0:00:45]} 1/2-1/2

[Event "HUN-ch U8-U18 2019"]
[Site "Balatonlelle"]
[Date "2019.06.24"]
[Round "5.35"]
[White "Baki, Bence"]
[Black "Kerekes, Laszlo Fulop"]
[Result "0-1"]
[ECO "C21"]
[WhiteElo "1174"]
[BlackElo "1320"]
[Annotator "NA"]
[PlyCount "54"]
[EventDate "2019.06.21"]
[EventType "swiss"]
[EventCountry "HUN"]
[SourceTitle "playchess.com"]
[Source "ChessBase"]
[SourceQuality "1"]
[TimeControl "40/5400+30:1800+30"]

1. e4 {[%emt 0:00:02]} e5 {[%emt 0:00:12]} 2. d4 {[%emt 0:00:11]} exd4 {[%emt 0:00:19]} 3. c3 {[%emt 0:00:30]} d5 {[%emt 0:00:15]} 4. Qxd4 {[%emt 0:00:48]} Nf6 {[%emt 0:00:40]} 5. e5 {[%emt 0:00:56]} Ne4 {[%emt 0:00:51]} 6. f3 {[%emt 0:01:08]} Bc5 {[%emt 0:00:47]} 7. Qa4+ {[%emt 0:00:49]} Bd7 {[%emt 0:00:31]} 8. Qc2 {[%emt 0:01:51]} Nf2 {[%emt 0:01:13]} 9. b4 {[%emt 0:00:49]} Bb6 {[%emt 0:00:46]} 10. a4 {[%emt 0:00:46]} a6 {[%emt 0:00:30]} 11. a5 {[%emt 0:02:43]} Ba7 {[%emt 0:00:17]} 12. Ba3 {[%emt 0:01:00]} Nxh1 {[%emt 0:00:48]} 13. Ne2 {[%emt 0:00:58]} Qh4+ {[%emt 0:01:19]} 14. g3 {[%emt 0:00:49]} Qxh2 {[%emt 0:00:56]} 15. Nd2 {[%emt 0:02:37]} Be3 {[%emt 0:01:20]} 16. b5 {[%emt 0:00:56]} Bxb5 {[%emt 0:01:06]} 17. Qb3 {[%emt 0:01:03]} Nxg3 {[%emt 0:02:04]} 18. c4 {[%emt 0:04:42]} Nxf1 {[%emt 0:02:12]} 19. Qb4 {[%emt 0:03:56]} Bxd2+ 20. Qxd2 Nxd2 {[%emt 0:02:24]} 21. Kxd2 {[%emt 0:00:41]} Bxc4 {[%emt 0:00:28]} 22. Re1 {[%emt 0:00:42]} d4 {[%emt 0:01:09]} 23. Kd1 {[%emt 0:00:18]} d3 {[%emt 0:00:55]} 24. Nd4 {[%emt 0:00:28]} Bb3+ {[%emt 0:00:39]} 25. Kc1 {[%emt 0:00:33]} d2+ {[%emt 0:00:29]} 26. Kb1 {[%emt 0:00:41]} dxe1=Q+ 27. Bc1 {[%emt 0:01:49]} Qa2# {[%emt 0:01:30]} 0-1

[Event "HUN-ch U8-U18 2019"]
[Site "Balatonlelle"]
[Date "2019.06.25"]
[Round "6.1"]
[White "Gombocz, Zsofia"]
[Black "Koltai, Dora"]
[Result "1-0"]
[ECO "B01"]
[WhiteElo "2077"]
[BlackElo "1773"]
[Annotator "NA"]
[PlyCount "51"]
[EventDate "2019.06.21"]
[EventType "swiss"]
[EventCountry "HUN"]
[SourceTitle "playchess.com"]
[Source "ChessBase"]
[SourceQuality "1"]
[TimeControl "40/5400+30:1800+30"]

1. e4 {[%emt 0:00:03]} d5 {[%emt 0:00:23]} 2. exd5 {[%emt 0:00:09]} Qxd5 {[%emt 0:00:02]} 3. Nf3 {[%emt 0:00:11]} Nf6 {[%emt 0:02:33]} 4. d4 {[%emt 0:00:50]} Bg4 {[%emt 0:06:16]} 5. Be2 {[%emt 0:00:49]} a6 {[%emt 0:04:40]} 6. c4 {[%emt 0:04:00]} Qd8 {[%emt 0:09:45]} 7. Qb3 {[%emt 0:08:22]} Qc8 {[%emt 0:05:18]} 8. Nc3 {[%emt 0:07:48]} e6 {[%emt 0:04:58]} 9. h3 {[%emt 0:04:10]} Bh5 {[%emt 0:01:42]} 10. g4 {[%emt 0:00:54]} Bg6 {[%emt 0:01:28]} 11. Ne5 {[%emt 0:00:47]} Nbd7 {[%emt 0:06:25]} 12. h4 {[%emt 0:04:55]} Nxe5 {[%emt 0:10:52]} 13. dxe5 {[%emt 0:01:24]} Ne4 {[%emt 0:01:31]} 14. h5 {[%emt 0:02:31]} Nxc3 {[%emt 0:02:14]} 15. hxg6 {[%emt 0:00:42]} Nxe2 {[%emt 0:00:37]} 16. gxf7+ {[%emt 0:00:13]} Kxf7 {[%emt 0:00:39]} 17. Kxe2 {[%emt 0:01:40]} Bc5 {[%emt 0:05:37]} 18. Bd2 {[%emt 0:05:30]} Kg8 {[%emt 0:05:08]} 19. Rh3 {[%emt 0:03:39]} b6 {[%emt 0:03:28]} 20. Rd1 {[%emt 0:07:11]} Qb7 {[%emt 0:03:56]} 21. f3 {[%emt 0:05:44]} Rf8 {[%emt 0:04:25]} 22. Qd3 {[%emt 0:02:36]} Qc6 {[%emt 0:02:08]} 23. Rdh1 {[%emt 0:01:52]} Rf7 {[%emt 0:04:04]} 24. Rxh7 {[%emt 0:03:55]} Rxh7 {[%emt 0:00:30]} 25. Qxh7+ {[%emt 0:00:12]} Kf8 {[%emt 0:00:20]} 26. Qh8+ {[%emt 0:00:26]} 1-0

[Event "HUN-ch U8-U18 2019"]
[Site "Balatonlelle"]
[Date "2019.06.25"]
[Round "6.1"]
[White "Markus, Molli Amina"]
[Black "Nandin-Erdene, Davaademberel"]
[Result "1-0"]
[ECO "A10"]
[WhiteElo "1755"]
[BlackElo "1581"]
[Annotator "NA"]
[PlyCount "99"]
[EventDate "2019.06.21"]
[EventType "swiss"]
[EventCountry "HUN"]
[SourceTitle "playchess.com"]
[Source "ChessBase"]
[SourceQuality "1"]
[TimeControl "40/5400+30:1800+30"]

1. c4 {[%emt 0:00:07]} f5 {[%emt 0:00:42]} 2. Nc3 {[%emt 0:00:39]} Nf6 {[%emt 0:00:18]} 3. g3 {[%emt 0:00:51]} g6 {[%emt 0:00:15]} 4. Bg2 {[%emt 0:00:23]} Bg7 {[%emt 0:00:11]} 5. Nf3 {[%emt 0:00:43]} d6 {[%emt 0:00:17]} 6. O-O {[%emt 0:00:48]} O-O {[%emt 0:00:14]} 7. d3 {[%emt 0:00:38]} e5 {[%emt 0:02:10]} 8. Rb1 {[%emt 0:01:05]} Nc6 {[%emt 0:03:52]} 9. b4 {[%emt 0:01:46]} a6 {[%emt 0:02:05]} 10. a4 {[%emt 0:00:44]} Ne7 {[%emt 0:01:49]} 11. b5 {[%emt 0:01:39]} c6 {[%emt 0:03:03]} 12. bxc6 {[%emt 0:01:58]} bxc6 {[%emt 0:13:07]} 13. Ba3 {[%emt 0:04:11]} Qc7 {[%emt 0:03:12]} 14. Qb3 {[%emt 0:02:17]} Kh8 {[%emt 0:02:27]} 15. Rfc1 {[%emt 0:04:06]} Be6 {[%emt 0:04:22]} 16. Qb7 {[%emt 0:05:39]} Qxb7 {[%emt 0:14:49]} 17. Rxb7 {[%emt 0:00:18]} Nc8 {[%emt 0:10:55]} 18. Ne1 {[%emt 0:08:05]} Bd7 {[%emt 0:08:08]} 19. Rc7 {[%emt 0:01:26]} Rd8 {[%emt 0:03:48]} 20. Bxc6 {[%emt 0:03:42]} Bxc6 {[%emt 0:00:10]} 21. Rxc6 {[%emt 0:00:06]} Rd7 {[%emt 0:00:35]} 22. Rb1 {[%emt 0:02:01]} e4 {[%emt 0:10:03]} 23. dxe4 {[%emt 0:02:43]} Ng4 {[%emt 0:02:17]} 24. Nd5 {[%emt 0:02:15]} Ne5 {[%emt 0:00:18]} 25. Rc7 {[%emt 0:00:52]} Rxc7 {[%emt 0:00:25]} 26. Nxc7 {[%emt 0:00:06]} Ra7 {[%emt 0:00:32]} 27. Nd5 {[%emt 0:00:41]} Nxc4 {[%emt 0:09:29]} 28. Rb8 {[%emt 0:01:25]} Nxa3 {[%emt 0:02:40]} 29. Rxc8+ {[%emt 0:00:07]} Bf8 {[%emt 0:00:06]} 30. Rxf8+ {[%emt 0:00:06]} Kg7 {[%emt 0:00:02]} 31. Rb8 {[%emt 0:00:44]} fxe4 {[%emt 0:00:39]} 32. Rb4 {[%emt 0:01:21]} Kf7 {[%emt 0:00:47]} 33. Rxe4 {[%emt 0:00:28]} Rb7 {[%emt 0:00:21]} 34. Rb4 {[%emt 0:00:32]} Ra7 {[%emt 0:00:46]} 35. Rb6 {[%emt 0:00:27]} Ke6 {[%emt 0:01:12]} 36. Nf4+ {[%emt 0:01:15]} Ke7 {[%emt 0:00:28]} 37. Ned3 {[%emt 0:00:34]} Nc4 {[%emt 0:00:15]} 38. Rc6 {[%emt 0:00:17]} Na5 {[%emt 0:00:44]} 39. Rc3 {[%emt 0:00:28]} Rb7 {[%emt 0:00:34]} 40. Nd5+ {[%emt 0:00:00]} Kf8 {[%emt 0:00:00]} 41. Rc8+ {[%emt 0:00:47]} Kf7 {[%emt 0:01:04]} 42. Rc7+ {[%emt 0:00:21]} Ke6 {[%emt 0:00:08]} 43. Rxb7 {[%emt 0:00:51]} Nxb7 {[%emt 0:00:08]} 44. Nc7+ {[%emt 0:00:12]} Kd7 {[%emt 0:00:46]} 45. Nxa6 {[%emt 0:00:08]} Na5 {[%emt 0:00:10]} 46. Nab4 {[%emt 0:00:19]} Kc7 {[%emt 0:00:19]} 47. Nd5+ {[%emt 0:00:29]} Kc6 {[%emt 0:00:21]} 48. Nf6 {[%emt 0:00:28]} h6 {[%emt 0:00:15]} 49. Ng8 {[%emt 0:00:10]} h5 {[%emt 0:00:14]} 50. Ne7+ {[%emt 0:00:05]} 1-0

[Event "HUN-ch U8-U18 2019"]
[Site "Balatonlelle"]
[Date "2019.06.25"]
[Round "6.2"]
[White "Pasti, Anna"]
[Black "Juhasz, Judit"]
[Result "1/2-1/2"]
[ECO "B20"]
[WhiteElo "1955"]
[BlackElo "1963"]
[Annotator "NA"]
[PlyCount "119"]
[EventDate "2019.06.21"]
[EventType "swiss"]
[EventCountry "HUN"]
[SourceTitle "playchess.com"]
[Source "ChessBase"]
[SourceQuality "1"]
[TimeControl "40/5400+30:1800+30"]

1. e4 {[%emt 0:00:03]} c5 {[%emt 0:00:11]} 2. c4 {[%emt 0:00:08]} Nc6 {[%emt 0:00:11]} 3. Ne2 {[%emt 0:00:11]} Nf6 {[%emt 0:00:17]} 4. Nbc3 {[%emt 0:00:07]} e6 {[%emt 0:00:10]} 5. d3 {[%emt 0:00:19]} d5 {[%emt 0:01:07]} 6. Bg5 {[%emt 0:06:18]} d4 {[%emt 0:04:12]} 7. Nb1 {[%emt 0:02:44]} h6 {[%emt 0:02:59]} 8. Bh4 {[%emt 0:01:30]} Qa5+ {[%emt 0:02:18]} 9. Nd2 {[%emt 0:01:15]} Ne5 {[%emt 0:01:30]} 10. Nc1 {[%emt 0:00:57]} Be7 {[%emt 0:04:48]} 11. Ncb3 {[%emt 0:03:17]} Qb6 {[%emt 0:06:06]} 12. Bg3 {[%emt 0:01:24]} Nc6 {[%emt 0:02:39]} 13. f4 {[%emt 0:05:22]} e5 {[%emt 0:06:21]} 14. Be2 {[%emt 0:01:51]} exf4 {[%emt 0:01:18]} 15. Bxf4 {[%emt 0:00:15]} Be6 {[%emt 0:00:40]} 16. O-O {[%emt 0:02:37]} O-O {[%emt 0:02:27]} 17. Nf3 {[%emt 0:06:23]} Nd7 {[%emt 0:01:59]} 18. Qe1 {[%emt 0:09:09]} f5 {[%emt 0:14:09]} 19. exf5 {[%emt 0:02:56]} Bxf5 {[%emt 0:00:44]} 20. Qg3 {[%emt 0:00:58]} Nb4 {[%emt 0:02:42]} 21. Ne5 {[%emt 0:04:19]} Nxe5 {[%emt 0:03:43]} 22. Bxe5 {[%emt 0:00:25]} Qg6 {[%emt 0:00:41]} 23. Rf3 {[%emt 0:04:55]} Qxg3 {[%emt 0:02:39]} 24. Rxg3 {[%emt 0:00:32]} g6 {[%emt 0:03:32]} 25. Rf3 {[%emt 0:10:42]} Rfe8 {[%emt 0:04:25]} 26. Bf4 {[%emt 0:03:21]} Bh4 {[%emt 0:02:39]} 27. Bf1 {[%emt 0:01:07]} Bg4 {[%emt 0:00:35]} 28. Nxc5 {[%emt 0:01:33]} Bxf3 {[%emt 0:03:06]} 29. gxf3 {[%emt 0:00:17]} Nc2 {[%emt 0:04:09]} 30. Rc1 {[%emt 0:00:47]} Ne1 {[%emt 0:00:16]} 31. Ne4 {[%emt 0:03:26]} Nxf3+ {[%emt 0:04:52]} 32. Kg2 {[%emt 0:00:22]} Ne5 {[%emt 0:03:20]} 33. Bg3 {[%emt 0:01:49]} Bxg3 {[%emt 0:03:20]} 34. hxg3 {[%emt 0:05:18]} Kg7 {[%emt 0:00:53]} 35. Be2 {[%emt 0:03:20]} Rf8 {[%emt 0:03:09]} 36. c5 {[%emt 0:01:09]} Rac8 {[%emt 0:02:12]} 37. b4 {[%emt 0:01:22]} b6 {[%emt 0:02:17]} 38. Nd6 {[%emt 0:02:46]} Rc6 {[%emt 0:04:16]} 39. Nb5 {[%emt 0:00:47]} bxc5 {[%emt 0:01:11]} 40. bxc5 {[%emt 0:00:00]} Rd8 {[%emt 0:00:00]} 41. Nxa7 {[%emt 0:08:55]} Ra6 {[%emt 0:02:10]} 42. Nb5 {[%emt 0:00:28]} Rxa2 {[%emt 0:01:03]} 43. Kf1 {[%emt 0:01:09]} Rf8+ {[%emt 0:00:27]} 44. Ke1 {[%emt 0:00:17]} Rf2 {[%emt 0:05:32]} 45. Nxd4 {[%emt 0:03:02]} Rfxe2+ {[%emt 0:00:07]} 46. Nxe2 {[%emt 0:01:04]} Nxd3+ {[%emt 0:00:11]} 47. Kd1 {[%emt 0:00:12]} Nxc1 {[%emt 0:00:20]} 48. Nxc1 {[%emt 0:00:24]} Ra1 {[%emt 0:02:08]} 49. Kc2 {[%emt 0:00:21]} Kf6 {[%emt 0:01:02]} 50. Kb2 {[%emt 0:01:20]} Rxc1 {[%emt 0:10:52]} 51. Kxc1 {[%emt 0:00:07]} Ke5 {[%emt 0:00:03]} 52. Kd2 {[%emt 0:01:37]} Kd5 {[%emt 0:00:16]} 53. Kd3 {[%emt 0:01:42]} Kxc5 {[%emt 0:00:25]} 54. Ke4 {[%emt 0:00:35]} Kd6 {[%emt 0:00:31]} 55. Kd4 {[%emt 0:02:33]} Ke6 {[%emt 0:00:21]} 56. Ke4 {[%emt 0:00:35]} Kf6 {[%emt 0:01:07]} 57. Kf4 {[%emt 0:00:17]} h5 {[%emt 0:00:53]} 58. g4 {[%emt 0:00:44]} g5+ {[%emt 0:00:05]} 59. Kf3 {[%emt 0:00:47]} h4 {[%emt 0:00:07]} 60. Ke4 {[%emt 0:00:20] Ke5+} 1/2-1/2

[Event "HUN-ch U8-U18 2019"]
[Site "Balatonlelle"]
[Date "2019.06.25"]
[Round "6.2"]
[White "Papp, Regina"]
[Black "Kiraly, Lilla Virag"]
[Result "0-1"]
[ECO "B18"]
[WhiteElo "1252"]
[BlackElo "1557"]
[Annotator "NA"]
[PlyCount "136"]
[EventDate "2019.06.21"]
[EventType "swiss"]
[EventCountry "HUN"]
[SourceTitle "playchess.com"]
[Source "ChessBase"]
[SourceQuality "1"]
[TimeControl "40/5400+30:1800+30"]

1. e4 {[%emt 0:00:00]} c6 {[%emt 0:00:10]} 2. d4 {[%emt 0:00:08]} d5 {[%emt 0:00:10]} 3. Nc3 {[%emt 0:00:11]} dxe4 {[%emt 0:00:14]} 4. Nxe4 {[%emt 0:00:12]} Bf5 {[%emt 0:00:20]} 5. Nc3 {[%emt 0:01:44]} Nf6 {[%emt 0:01:05]} 6. Bc4 {[%emt 0:01:29]} e6 {[%emt 0:00:37]} 7. Nf3 {[%emt 0:01:42]} Bb4 {[%emt 0:02:42]} 8. O-O {[%emt 0:03:03]} O-O {[%emt 0:02:20]} 9. a3 {[%emt 0:02:20]} Be7 {[%emt 0:02:41]} 10. Bd2 {[%emt 0:10:16]} Qc7 {[%emt 0:02:05]} 11. Bb3 {[%emt 0:05:38]} Rd8 {[%emt 0:03:33]} 12. Qc1 {[%emt 0:04:46]} Bd6 {[%emt 0:07:26]} 13. Ne2 {[%emt 0:10:40]} Bg4 {[%emt 0:03:00]} 14. Bf4 {[%emt 0:05:21]} Bxf4 {[%emt 0:03:13]} 15. Nxf4 {[%emt 0:01:25]} Bxf3 {[%emt 0:01:55]} 16. gxf3 {[%emt 0:03:19]} Rxd4 {[%emt 0:01:45]} 17. Ng2 {[%emt 0:01:38]} Na6 {[%emt 0:03:40]} 18. Rd1 {[%emt 0:03:10]} Rad8 {[%emt 0:05:17]} 19. Rxd4 {[%emt 0:03:23]} Rxd4 {[%emt 0:00:25]} 20. Qe3 {[%emt 0:03:44]} Qb6 {[%emt 0:04:39]} 21. Re1 {[%emt 0:08:20]} Rd8 {[%emt 0:02:19]} 22. Qc1 {[%emt 0:02:20]} Nc5 {[%emt 0:03:12]} 23. Ba2 {[%emt 0:01:32]} h6 {[%emt 0:03:16]} 24. b4 {[%emt 0:02:10]} Na4 {[%emt 0:03:29]} 25. c3 {[%emt 0:03:27]} Nd5 {[%emt 0:03:57]} 26. c4 {[%emt 0:02:58]} Ndc3 {[%emt 0:05:05]} 27. Bb3 {[%emt 0:04:18]} Qd4 {[%emt 0:02:53]} 28. c5 {[%emt 0:05:11]} Qd2 {[%emt 0:02:07]} 29. Qxd2 {[%emt 0:03:26]} Rxd2 {[%emt 0:00:14]} 30. Ne3 {[%emt 0:00:40]} Nb2 {[%emt 0:02:04]} 31. Nc4 {[%emt 0:01:24]} Nxc4 {[%emt 0:00:51]} 32. Bxc4 {[%emt 0:00:07]} Kf8 {[%emt 0:00:56]} 33. Kg2 {[%emt 0:00:29]} Na4 {[%emt 0:01:17]} 34. b5 {[%emt 0:00:56]} cxb5 {[%emt 0:00:55]} 35. Bxb5 {[%emt 0:00:05]} Nxc5 {[%emt 0:00:20]} 36. Rc1 {[%emt 0:00:17]} b6 {[%emt 0:00:39]} 37. a4 {[%emt 0:00:38]} Ke7 {[%emt 0:01:02]} 38. a5 {[%emt 0:00:43]} g6 {[%emt 0:05:19]} 39. axb6 {[%emt 0:01:15]} axb6 {[%emt 0:00:19]} 40. Kg3 {[%emt 0:00:00]} Rb2 {[%emt 0:00:00]} 41. Bf1 {[%emt 0:01:49]} Nd7 {[%emt 0:05:52]} 42. Rc7 {[%emt 0:00:52]} Kd6 {[%emt 0:01:30]} 43. Rb7 {[%emt 0:00:46]} Ne5 {[%emt 0:01:11]} 44. f4 {[%emt 0:00:44]} Rb3+ {[%emt 0:01:15]} 45. Kg2 {[%emt 0:00:22]} Nd7 {[%emt 0:01:07]} 46. h4 {[%emt 0:00:42]} Rb2 {[%emt 0:02:46]} 47. Ra7 {[%emt 0:01:42]} Kc6 {[%emt 0:03:03]} 48. Ra1 {[%emt 0:00:58]} f5 {[%emt 0:01:47]} 49. Bc4 {[%emt 0:00:50]} Kd6 {[%emt 0:00:32]} 50. Re1 {[%emt 0:01:06]} Nc5 {[%emt 0:00:32]} 51. Rd1+ {[%emt 0:00:27]} Ke7 {[%emt 0:00:15]} 52. Re1 {[%emt 0:01:15]} Ne4 {[%emt 0:00:27]} 53. Be2 {[%emt 0:00:31]} b5 {[%emt 0:00:53]} 54. Kg1 {[%emt 0:00:53]} b4 {[%emt 0:00:57]} 55. f3 {[%emt 0:01:09]} Nc3 {[%emt 0:01:01]} 56. Bc4 {[%emt 0:01:04]} Rb1 {[%emt 0:00:25]} 57. Kf1 {[%emt 0:01:59]} Rxe1+ {[%emt 0:00:37]} 58. Kxe1 {[%emt 0:00:06]} Nd5 {[%emt 0:00:25]} 59. Bb3 {[%emt 0:01:25]} Nxf4 {[%emt 0:00:30]} 60. Kf2 {[%emt 0:00:15]} Nd3+ {[%emt 0:00:22]} 61. Ke3 {[%emt 0:01:02]} Nc5 {[%emt 0:00:50]} 62. Bc2 {[%emt 0:00:31]} b3 {[%emt 0:00:37]} 63. Bb1 {[%emt 0:00:16]} e5 {[%emt 0:00:30]} 64. f4 {[%emt 0:01:09]} e4 {[%emt 0:00:42]} 65. Kd4 {[%emt 0:01:03]} Kd6 {[%emt 0:00:46]} 66. Ke3 {[%emt 0:00:56]} Kd5 {[%emt 0:00:28]} 67. Ke2 {[%emt 0:01:01]} Kd4 {[%emt 0:00:16]} 68. Kd2 {[%emt 0:00:27]} Na4 {[%emt 0:00:29]} 0-1

[Event "HUN-ch U8-U18 2019"]
[Site "Balatonlelle"]
[Date "2019.06.25"]
[Round "6.3"]
[White "Lukacs, Anna Kata"]
[Black "Ivan, Reka Gyongyver"]
[Result "1-0"]
[ECO "B10"]
[WhiteElo "1915"]
[BlackElo "1619"]
[Annotator "NA"]
[PlyCount "51"]
[EventDate "2019.06.21"]
[EventType "swiss"]
[EventCountry "HUN"]
[SourceTitle "playchess.com"]
[Source "ChessBase"]
[SourceQuality "1"]
[TimeControl "40/5400+30:1800+30"]

1. e4 {[%emt 0:00:03]} c6 {[%emt 0:00:08]} 2. c4 {[%emt 0:00:08]} d5 {[%emt 0:00:12]} 3. exd5 {[%emt 0:00:12]} cxd5 {[%emt 0:00:11]} 4. cxd5 {[%emt 0:00:08]} Qxd5 {[%emt 0:00:28]} 5. Nc3 {[%emt 0:00:13]} Qd8 {[%emt 0:00:21]} 6. d4 {[%emt 0:00:17]} Nf6 {[%emt 0:00:10]} 7. Nf3 {[%emt 0:00:41]} e6 {[%emt 0:00:27]} 8. Bg5 {[%emt 0:01:01]} Bb4 {[%emt 0:02:55]} 9. a3 {[%emt 0:05:06]} Bxc3+ {[%emt 0:03:02]} 10. bxc3 {[%emt 0:00:12]} O-O {[%emt 0:02:44]} 11. Bd3 {[%emt 0:00:24]} h6 {[%emt 0:02:34]} 12. Bh4 {[%emt 0:01:22]} Nbd7 {[%emt 0:03:34]} 13. O-O {[%emt 0:06:09]} Qa5 {[%emt 0:04:19]} 14. Rc1 {[%emt 0:12:20]} b6 {[%emt 0:02:58]} 15. Bc2 {[%emt 0:01:02]} Bb7 {[%emt 0:01:36]} 16. Re1 {[%emt 0:11:17]} Qh5 17. Bg3 {[%emt 0:00:57]} Bxf3 {[%emt 0:09:18]} 18. gxf3 {[%emt 0:05:47]} Rac8 {[%emt 0:11:22]} 19. Qd3 {[%emt 0:09:55]} Qd5 {[%emt 0:08:51]} 20. c4 {[%emt 0:05:47]} Qa5 {[%emt 0:10:53]} 21. Kh1 {[%emt 0:00:51]} Rfd8 {[%emt 0:06:04]} 22. Qe3 {[%emt 0:03:58]} Kh8 {[%emt 0:06:43]} 23. Bb1 {[%emt 0:04:11]} Rc6 {[%emt 0:04:57]} 24. Rg1 {[%emt 0:01:52]} Nh5 {[%emt 0:06:29]} 25. Qe4 {[%emt 0:01:26]} Nxg3+ 26. Rxg3 1-0

[Event "HUN-ch U8-U18 2019"]
[Site "Balatonlelle"]
[Date "2019.06.25"]
[Round "6.3"]
[White "Deak-Sala, Emilia"]
[Black "Vilics, Hanna"]
[Result "1-0"]
[ECO "B18"]
[WhiteElo "1415"]
[BlackElo "1285"]
[Annotator "NA"]
[PlyCount "65"]
[EventDate "2019.06.21"]
[EventType "swiss"]
[EventCountry "HUN"]
[SourceTitle "playchess.com"]
[Source "ChessBase"]
[SourceQuality "1"]
[TimeControl "40/5400+30:1800+30"]

1. e4 {[%emt 0:00:01]} c6 {[%emt 0:00:20]} 2. d4 {[%emt 0:00:06]} d5 {[%emt 0:00:15]} 3. Nd2 {[%emt 0:00:35]} dxe4 {[%emt 0:00:27]} 4. Nxe4 {[%emt 0:00:10]} Bf5 {[%emt 0:00:23]} 5. Ng3 {[%emt 0:00:09]} Bg6 {[%emt 0:00:21]} 6. h4 {[%emt 0:00:16]} h6 {[%emt 0:00:18]} 7. Nf3 {[%emt 0:00:08]} Nf6 {[%emt 0:00:40]} 8. Ne5 {[%emt 0:00:20]} Bh7 {[%emt 0:00:42]} 9. c3 {[%emt 0:03:30]} e6 {[%emt 0:01:12]} 10. Bd3 {[%emt 0:03:18]} Bxd3 {[%emt 0:04:31]} 11. Qxd3 {[%emt 0:00:14]} Bd6 {[%emt 0:01:25]} 12. f4 {[%emt 0:02:55]} Nbd7 {[%emt 0:02:00]} 13. Qf3 {[%emt 0:02:19]} Qc7 {[%emt 0:03:11]} 14. Bd2 {[%emt 0:05:15]} a6 {[%emt 0:03:17]} 15. Ne2 {[%emt 0:10:56]} Bxe5 {[%emt 0:06:05]} 16. fxe5 {[%emt 0:01:51]} Nd5 {[%emt 0:00:44]} 17. Qg4 {[%emt 0:03:36]} g6 {[%emt 0:06:42]} 18. c4 {[%emt 0:03:20]} Ne7 {[%emt 0:00:49]} 19. c5 {[%emt 0:01:17]} Nd5 {[%emt 0:03:47]} 20. O-O {[%emt 0:04:51]} h5 {[%emt 0:03:58]} 21. Qf3 {[%emt 0:01:03]} Rh7 {[%emt 0:00:48]} 22. Qd3 {[%emt 0:02:34]} Qd8 {[%emt 0:02:58]} 23. Bg5 {[%emt 0:02:38]} Qc7 {[%emt 0:01:03]} 24. a3 {[%emt 0:01:39]} b5 {[%emt 0:03:09]} 25. b4 {[%emt 0:01:01]} a5 {[%emt 0:00:32]} 26. bxa5 {[%emt 0:03:20]} Qxa5 {[%emt 0:00:22]} 27. Rfc1 {[%emt 0:04:42]} Nb8 {[%emt 0:02:51]} 28. Ng3 {[%emt 0:01:07]} Nd7 {[%emt 0:00:28]} 29. Ne4 {[%emt 0:01:32]} Qc7 {[%emt 0:02:16]} 30. Rf1 {[%emt 0:02:50]} Nb8 {[%emt 0:01:42]} 31. Nd6+ {[%emt 0:00:28]} Kf8 {[%emt 0:00:43]} 32. Qxg6 {[%emt 0:01:30]} Rg7 {[%emt 0:03:59]} 33. Bh6 {[%emt 0:00:51]} 1-0